[Event "Titled Tuesday Blitz June 6 Early 2023"]
[White "Schuh, Karsten"]
[Black "Antonio, Jorge Carlos"]
[WhiteFideId "4637950"]
[BlackFideId "113190"]
[WhiteElo "2177"]
[BlackElo "2247"]
[Result "1/2-1/2"]
[Round "6"]
[TimeControl "180+2"]
[Date "2023.06.06"]
[WhiteClock "0:00:12"]
[BlackClock "0:00:44"]
[Board "151"]

1. Nf3 {[%clk 0:03:00]}  d5 {[%clk 0:02:58]} 2. c4 {[%clk 0:03:01]}  c6 {[%clk 0:02:58]} 3. b3 {[%clk 0:03:00]}  Nf6 {[%clk 0:02:57]} 4. Bb2 {[%clk 0:03:00]}  Bf5 {[%clk 0:02:55]} 5. g3 {[%clk 0:03:00]}  e6 {[%clk 0:02:56]} 6. Bg2 {[%clk 0:03:00]}  Be7 {[%clk 0:02:53]} 7. O-O {[%clk 0:03:00]}  O-O {[%clk 0:02:53]} 8. d3 {[%clk 0:03:00]}  dxc4 {[%clk 0:02:50]} 9. bxc4 {[%clk 0:02:58]}  Nbd7 {[%clk 0:02:45]} 10. Nbd2 {[%clk 0:02:54]}  Rc8 {[%clk 0:02:43]} 11. Qc2 {[%clk 0:02:43]}  c5 {[%clk 0:02:41]} 12. Rfb1 {[%clk 0:02:35]}  b6 {[%clk 0:02:41]} 13. Re1 {[%clk 0:02:26]}  Nb8 {[%clk 0:02:39]} 14. Ne5 {[%clk 0:02:21]}  Nfd7 {[%clk 0:02:35]} 15. Ndf3 {[%clk 0:02:13]}  Nxe5 {[%clk 0:02:33]} 16. Nxe5 {[%clk 0:02:13]}  Bf6 {[%clk 0:02:28]} 17. Qb3 {[%clk 0:02:04]}  Bxe5 {[%clk 0:02:25]} 18. Bxe5 {[%clk 0:02:03]}  Nc6 {[%clk 0:02:25]} 19. Bc3 {[%clk 0:02:00]}  Nd4 {[%clk 0:02:23]} 20. Qb2 {[%clk 0:01:55]}  Bg6 {[%clk 0:02:08]} 21. Rad1 {[%clk 0:01:50]}  f6 {[%clk 0:02:05]} 22. a4 {[%clk 0:01:47]}  Nc6 {[%clk 0:01:54]} 23. Ra1 {[%clk 0:01:44]}  a5 {[%clk 0:01:52]} 24. Bh3 {[%clk 0:01:31]}  Bf7 {[%clk 0:01:43]} 25. Rad1 {[%clk 0:01:28]}  Nb4 {[%clk 0:01:42]} 26. Bg2 {[%clk 0:01:17]}  e5 {[%clk 0:01:40]} 27. h4 {[%clk 0:01:16]}  h6 {[%clk 0:01:39]} 28. Rf1 {[%clk 0:00:51]}  Rc7 {[%clk 0:01:38]} 29. Be4 {[%clk 0:00:44]}  Rd7 {[%clk 0:01:36]} 30. f4 {[%clk 0:00:41]}  exf4 {[%clk 0:01:32]} 31. Rxf4 {[%clk 0:00:26]}  Rd6 {[%clk 0:01:29]} 32. Rdf1 {[%clk 0:00:24]}  Qe8 {[%clk 0:01:09]} 33. R1f2 {[%clk 0:00:23]}  Bg6 {[%clk 0:01:08]} 34. Kh2 {[%clk 0:00:19]}  Bxe4 {[%clk 0:01:07]} 35. Rxe4 {[%clk 0:00:18]}  Re6 {[%clk 0:01:07]} 36. Rxe6 {[%clk 0:00:13]}  Qxe6 {[%clk 0:01:06]} 37. Qd2 {[%clk 0:00:13]}  Re8 {[%clk 0:01:01]} 38. Qf4 {[%clk 0:00:13]}  Qe3 {[%clk 0:00:48]} 39. Qf5 {[%clk 0:00:13]}  Qe6 {[%clk 0:00:46]} 40. Qf4 {[%clk 0:00:13]}  Qe3 {[%clk 0:00:45]} 41. Qf5 {[%clk 0:00:14]}  Qe6 {[%clk 0:00:44]} 42. Qf4 {[%clk 0:00:12]} 1/2-1/2


[Site "https://www.chess.com"]

[Event "Titled Tuesday Blitz June 6 Early 2023"]
[White "Hoffmann, Asa"]
[Black "Butolo, Alexandru-Mircea"]
[WhiteFideId "2001470"]
[BlackFideId "1261649"]
[WhiteElo "2117"]
[BlackElo "1850"]
[Result "1/2-1/2"]
[Round "6"]
[TimeControl "180+2"]
[Date "2023.06.06"]
[WhiteClock "0:01:01"]
[BlackClock "0:00:01"]
[Board "154"]

1. d4 {[%clk 0:02:57]}  Nf6 {[%clk 0:02:57]} 2. Bg5 {[%clk 0:02:53]}  Ne4 {[%clk 0:02:57]} 3. Bf4 {[%clk 0:02:53]}  d5 {[%clk 0:02:57]} 4. f3 {[%clk 0:02:53]}  Nf6 {[%clk 0:02:56]} 5. e4 {[%clk 0:02:53]}  dxe4 {[%clk 0:02:56]} 6. Nc3 {[%clk 0:02:53]}  exf3 {[%clk 0:02:54]} 7. Nxf3 {[%clk 0:02:52]}  Bg4 {[%clk 0:02:50]} 8. h3 {[%clk 0:02:52]}  Bh5 {[%clk 0:02:50]} 9. g4 {[%clk 0:02:52]}  Bg6 {[%clk 0:02:50]} 10. Ne5 {[%clk 0:02:52]}  Nbd7 {[%clk 0:02:41]} 11. Bg2 {[%clk 0:02:51]}  c6 {[%clk 0:02:28]} 12. h4 {[%clk 0:02:48]}  h5 {[%clk 0:01:43]} 13. Nxg6 {[%clk 0:02:46]}  fxg6 {[%clk 0:01:40]} 14. g5 {[%clk 0:02:43]}  Nd5 {[%clk 0:01:21]} 15. Bd2 {[%clk 0:02:30]}  Qc7 {[%clk 0:01:15]} 16. Qf3 {[%clk 0:02:26]}  e6 {[%clk 0:00:50]} 17. O-O {[%clk 0:02:23]}  O-O-O {[%clk 0:00:47]} 18. Rae1 {[%clk 0:02:22]}  Bd6 {[%clk 0:00:43]} 19. Rxe6 {[%clk 0:02:18]}  Rhf8 {[%clk 0:00:33]} 20. Nxd5 {[%clk 0:02:13]}  Rxf3 {[%clk 0:00:31]} 21. Nxc7 {[%clk 0:02:12]}  Rxf1+ {[%clk 0:00:31]} 22. Bxf1 {[%clk 0:02:09]}  Kxc7 {[%clk 0:00:20]} 23. Rxg6 {[%clk 0:02:08]}  Rg8 {[%clk 0:00:15]} 24. Bd3 {[%clk 0:02:06]}  Nf8 {[%clk 0:00:14]} 25. Bc4 {[%clk 0:02:01]}  Nxg6 {[%clk 0:00:14]} 26. Bxg8 {[%clk 0:02:01]}  Nxh4 {[%clk 0:00:15]} 27. Kf2 {[%clk 0:01:58]}  Nf5 {[%clk 0:00:13]} 28. c3 {[%clk 0:01:55]}  h4 {[%clk 0:00:13]} 29. Be6 {[%clk 0:01:54]}  Ng3 {[%clk 0:00:12]} 30. Kg2 {[%clk 0:01:52]}  Ne4 {[%clk 0:00:12]} 31. Be1 {[%clk 0:01:52]}  Nxg5 {[%clk 0:00:11]} 32. Bxh4 {[%clk 0:01:51]}  Nxe6 {[%clk 0:00:11]} 33. Kf3 {[%clk 0:01:51]}  g5 {[%clk 0:00:12]} 34. Be1 {[%clk 0:01:46]}  Nf4 {[%clk 0:00:12]} 35. Kg4 {[%clk 0:01:45]}  Nd3 {[%clk 0:00:12]} 36. Bd2 {[%clk 0:01:43]}  Be7 {[%clk 0:00:11]} 37. b3 {[%clk 0:01:42]}  Nf2+ {[%clk 0:00:10]} 38. Kf3 {[%clk 0:01:40]}  Nh3 {[%clk 0:00:10]} 39. Kg3 {[%clk 0:01:39]}  Nf4 {[%clk 0:00:09]} 40. Kg4 {[%clk 0:01:36]}  Kd6 {[%clk 0:00:08]} 41. c4 {[%clk 0:01:35]}  a6 {[%clk 0:00:08]} 42. Kf5 {[%clk 0:01:32]}  Ne2 {[%clk 0:00:06]} 43. Be3 {[%clk 0:01:31]}  Nc3 {[%clk 0:00:05]} 44. a4 {[%clk 0:01:26]}  a5 {[%clk 0:00:04]} 45. Bd2 {[%clk 0:01:25]}  Ne2 {[%clk 0:00:03]} 46. Ke4 {[%clk 0:01:22]}  Ng3+ {[%clk 0:00:01]} 47. Kf3 {[%clk 0:01:21]}  Nf5 {[%clk 0:00:01]} 48. Ke4 {[%clk 0:01:21]}  Ng7 {[%clk 0:00:02]} 49. Bxa5 {[%clk 0:01:21]}  Kd7 {[%clk 0:00:02]} 50. Bd2 {[%clk 0:01:19]}  Ne6 {[%clk 0:00:03]} 51. d5 {[%clk 0:01:18]}  cxd5+ {[%clk 0:00:03]} 52. Kxd5 {[%clk 0:01:18]}  Nc5 {[%clk 0:00:04]} 53. b4 {[%clk 0:01:17]}  Nxa4 {[%clk 0:00:04]} 54. c5 {[%clk 0:01:17]}  Nb2 {[%clk 0:00:04]} 55. b5 {[%clk 0:01:15]}  Nd3 {[%clk 0:00:04]} 56. c6+ {[%clk 0:01:14]}  bxc6+ {[%clk 0:00:05]} 57. bxc6+ {[%clk 0:01:14]}  Kc7 {[%clk 0:00:06]} 58. Ba5+ {[%clk 0:01:14]}  Kc8 {[%clk 0:00:06]} 59. Ke6 {[%clk 0:01:14]}  Bd8 {[%clk 0:00:06]} 60. Bd2 {[%clk 0:01:13]}  g4 {[%clk 0:00:06]} 61. Kf5 {[%clk 0:01:12]}  g3 {[%clk 0:00:06]} 62. Be3 {[%clk 0:01:13]}  g2 {[%clk 0:00:06]} 63. Ke4 {[%clk 0:01:13]}  Ne1 {[%clk 0:00:06]} 64. Ke5 {[%clk 0:01:11]}  Kc7 {[%clk 0:00:06]} 65. Kd5 {[%clk 0:01:10]}  Bg5 {[%clk 0:00:05]} 66. Bg1 {[%clk 0:01:09]}  Nd3 {[%clk 0:00:04]} 67. Ke4 {[%clk 0:01:08]}  Ne1 {[%clk 0:00:04]} 68. Kf5 {[%clk 0:01:06]}  Bd2 {[%clk 0:00:03]} 69. Kg4 {[%clk 0:01:06]}  Kxc6 {[%clk 0:00:04]} 70. Kh3 {[%clk 0:01:05]}  Kd5 {[%clk 0:00:04]} 71. Bf2 {[%clk 0:01:05]}  Ke4 {[%clk 0:00:04]} 72. Bg1 {[%clk 0:01:05]}  Kf3 {[%clk 0:00:04]} 73. Kh4 {[%clk 0:01:04]}  Be3 {[%clk 0:00:04]} 74. Bh2 {[%clk 0:01:03]}  g1=Q {[%clk 0:00:04]} 75. Bxg1 {[%clk 0:01:03]}  Bxg1 {[%clk 0:00:05]} 76. Kh3 {[%clk 0:01:03]}  Be3 {[%clk 0:00:05]} 77. Kh4 {[%clk 0:01:02]}  Kf4 {[%clk 0:00:05]} 78. Kh3 {[%clk 0:01:02]}  Nf3 {[%clk 0:00:04]} 79. Kg2 {[%clk 0:01:02]}  Nd2 {[%clk 0:00:04]} 80. Kh3 {[%clk 0:01:02]}  Bg1 {[%clk 0:00:03]} 81. Kg2 {[%clk 0:01:02]}  Bd4 {[%clk 0:00:03]} 82. Kh3 {[%clk 0:01:02]}  Kf3 {[%clk 0:00:03]} 83. Kh2 {[%clk 0:01:02]}  Nf1+ {[%clk 0:00:02]} 84. Kh1 {[%clk 0:01:02]}  Ng3+ {[%clk 0:00:02]} 85. Kh2 {[%clk 0:01:02]}  Ne4 {[%clk 0:00:01]} 86. Kh3 {[%clk 0:01:01]} 1/2-1/2


[Site "https://www.chess.com"]

[Event "Titled Tuesday Blitz June 6 Early 2023"]
[White "Do Nascimento,Christian Almeida"]
[Black "Antonova, Nadezhda"]
[WhiteFideId "2143801"]
[BlackFideId "14700182"]
[WhiteElo "2078"]
[BlackElo "1795"]
[Result "1-0"]
[Round "6"]
[TimeControl "180+2"]
[Date "2023.06.06"]
[WhiteClock "0:00:03"]
[BlackClock "0:00:01"]
[Board "155"]

1. e4 {[%clk 0:02:56]}  c6 {[%clk 0:02:57]} 2. Nf3 {[%clk 0:02:54]}  d5 {[%clk 0:02:58]} 3. Nc3 {[%clk 0:02:54]}  Bg4 {[%clk 0:02:57]} 4. exd5 {[%clk 0:02:53]}  cxd5 {[%clk 0:02:55]} 5. Bb5+ {[%clk 0:02:51]}  Nc6 {[%clk 0:02:44]} 6. Ne5 {[%clk 0:02:24]}  Bd7 {[%clk 0:02:26]} 7. Nxd7 {[%clk 0:02:23]}  Qxd7 {[%clk 0:02:25]} 8. d4 {[%clk 0:02:15]}  e6 {[%clk 0:02:24]} 9. O-O {[%clk 0:02:13]}  Nf6 {[%clk 0:02:23]} 10. Bg5 {[%clk 0:02:12]}  Be7 {[%clk 0:02:23]} 11. Re1 {[%clk 0:02:05]}  O-O {[%clk 0:02:23]} 12. Ne2 {[%clk 0:01:55]}  a6 {[%clk 0:02:21]} 13. Ba4 {[%clk 0:01:53]}  b5 {[%clk 0:02:20]} 14. Bb3 {[%clk 0:01:54]}  Ne4 {[%clk 0:02:17]} 15. Bxe7 {[%clk 0:01:53]}  Nxe7 {[%clk 0:02:13]} 16. Ng3 {[%clk 0:01:52]}  Nxg3 {[%clk 0:02:11]} 17. hxg3 {[%clk 0:01:52]}  Rfc8 {[%clk 0:02:09]} 18. c3 {[%clk 0:01:53]}  Nf5 {[%clk 0:02:04]} 19. Bc2 {[%clk 0:01:51]}  Nd6 {[%clk 0:02:03]} 20. Qh5 {[%clk 0:01:36]}  g6 {[%clk 0:01:28]} 21. Qg5 {[%clk 0:01:35]}  Qd8 {[%clk 0:01:25]} 22. Qf4 {[%clk 0:01:22]}  Nc4 {[%clk 0:01:20]} 23. Rab1 {[%clk 0:01:10]}  Qc7 {[%clk 0:01:08]} 24. Qh6 {[%clk 0:01:08]}  Qd8 {[%clk 0:01:07]} 25. g4 {[%clk 0:01:07]}  Qf8 {[%clk 0:01:06]} 26. Qf4 {[%clk 0:01:07]}  Rc6 {[%clk 0:00:51]} 27. g5 {[%clk 0:01:05]}  Rac8 {[%clk 0:00:50]} 28. Bd3 {[%clk 0:01:03]}  Nd6 {[%clk 0:00:48]} 29. Re3 {[%clk 0:01:00]}  a5 {[%clk 0:00:39]} 30. a3 {[%clk 0:00:56]}  b4 {[%clk 0:00:32]} 31. axb4 {[%clk 0:00:56]}  axb4 {[%clk 0:00:32]} 32. cxb4 {[%clk 0:00:52]}  Nc4 {[%clk 0:00:26]} 33. Rh3 {[%clk 0:00:46]}  Rb6 {[%clk 0:00:21]} 34. Bxc4 {[%clk 0:00:31]}  Rxc4 {[%clk 0:00:20]} 35. b3 {[%clk 0:00:12]}  Rcxb4 {[%clk 0:00:18]} 36. g3 {[%clk 0:00:10]}  Qg7 {[%clk 0:00:17]} 37. Rc1 {[%clk 0:00:09]}  Rb8 {[%clk 0:00:15]} 38. Rc3 {[%clk 0:00:05]}  Qxd4 {[%clk 0:00:14]} 39. Qc1 {[%clk 0:00:05]}  Qb6 {[%clk 0:00:06]} 40. Rc8+ {[%clk 0:00:04]}  Rxc8 {[%clk 0:00:06]} 41. Qxc8+ {[%clk 0:00:04]}  Kg7 {[%clk 0:00:07]} 42. Qc3+ {[%clk 0:00:05]}  Qd4 {[%clk 0:00:07]} 43. Qc7 {[%clk 0:00:04]}  Rxb3 {[%clk 0:00:06]} 44. Kg2 {[%clk 0:00:02]}  Qe4+ {[%clk 0:00:05]} 45. Kh2 {[%clk 0:00:02]}  Rb2 {[%clk 0:00:05]} 46. Qc3+ {[%clk 0:00:01]}  d4 {[%clk 0:00:02]} 47. Qxb2 {[%clk 0:00:02]}  e5 {[%clk 0:00:02]} 48. Qd2 {[%clk 0:00:02]}  Qf3 {[%clk 0:00:01]} 49. Rh4 {[%clk 0:00:03]}  Qf5 {[%clk 0:00:01]} 50. Qe2 {[%clk 0:00:03]} 1-0


[Site "https://www.chess.com"]

[Event "Titled Tuesday Blitz June 6 Early 2023"]
[White "Camilla_Lee"]
[Black "Pg, Mohd Omar Ak Hira"]
[BlackFideId "10500103"]
[WhiteElo "2504"]
[BlackElo "2167"]
[Result "1-0"]
[Round "6"]
[TimeControl "180+2"]
[Date "2023.06.06"]
[WhiteClock "0:00:09"]
[BlackClock "0:00:02"]
[Board "156"]

1. e4 {[%clk 0:03:00]}  c5 {[%clk 0:02:58]} 2. Nf3 {[%clk 0:03:00]}  a6 {[%clk 0:02:58]} 3. c3 {[%clk 0:03:00]}  d5 {[%clk 0:02:50]} 4. exd5 {[%clk 0:03:00]}  Qxd5 {[%clk 0:02:51]} 5. d4 {[%clk 0:03:00]}  Bg4 {[%clk 0:02:44]} 6. Be2 {[%clk 0:02:57]}  e6 {[%clk 0:02:29]} 7. h3 {[%clk 0:02:55]}  Bh5 {[%clk 0:02:28]} 8. O-O {[%clk 0:02:55]}  Nf6 {[%clk 0:02:27]} 9. Be3 {[%clk 0:02:55]}  c4 {[%clk 0:02:14]} 10. Nbd2 {[%clk 0:02:51]}  b5 {[%clk 0:02:11]} 11. b3 {[%clk 0:02:51]}  cxb3 {[%clk 0:02:08]} 12. axb3 {[%clk 0:02:51]}  Be7 {[%clk 0:02:03]} 13. c4 {[%clk 0:02:51]}  bxc4 {[%clk 0:02:03]} 14. bxc4 {[%clk 0:02:48]}  Qd8 {[%clk 0:01:56]} 15. Ne5 {[%clk 0:02:43]}  Bxe2 {[%clk 0:01:53]} 16. Qxe2 {[%clk 0:02:44]}  O-O {[%clk 0:01:54]} 17. Qf3 {[%clk 0:02:42]}  Nbd7 {[%clk 0:01:38]} 18. Nc6 {[%clk 0:02:41]}  Qe8 {[%clk 0:01:39]} 19. Rfb1 {[%clk 0:02:33]}  a5 {[%clk 0:01:00]} 20. Rb7 {[%clk 0:02:23]}  Bb4 {[%clk 0:00:54]} 21. Nf1 {[%clk 0:01:54]}  Kh8 {[%clk 0:00:47]} 22. Nxb4 {[%clk 0:01:49]}  axb4 {[%clk 0:00:46]} 23. Rxa8 {[%clk 0:01:50]}  Qxa8 {[%clk 0:00:46]} 24. Rxb4 {[%clk 0:01:50]}  Qa1 {[%clk 0:00:36]} 25. Rb7 {[%clk 0:01:41]}  e5 {[%clk 0:00:30]} 26. d5 {[%clk 0:01:38]}  e4 {[%clk 0:00:29]} 27. Qe2 {[%clk 0:01:38]}  Ne5 {[%clk 0:00:27]} 28. Kh2 {[%clk 0:01:29]}  Nd3 {[%clk 0:00:20]} 29. Ng3 {[%clk 0:01:25]}  Qe5 {[%clk 0:00:14]} 30. Kg1 {[%clk 0:01:05]}  Qa1+ {[%clk 0:00:13]} 31. Qf1 {[%clk 0:01:02]}  Qc3 {[%clk 0:00:12]} 32. c5 {[%clk 0:00:45]}  h5 {[%clk 0:00:11]} 33. d6 {[%clk 0:00:34]}  h4 {[%clk 0:00:10]} 34. Nf5 {[%clk 0:00:35]}  Nxc5 {[%clk 0:00:10]} 35. Rc7 {[%clk 0:00:28]}  Nfd7 {[%clk 0:00:10]} 36. Bd4 {[%clk 0:00:25]}  Qc2 {[%clk 0:00:06]} 37. Bxg7+ {[%clk 0:00:25]}  Kh7 {[%clk 0:00:06]} 38. Bxf8 {[%clk 0:00:24]}  Nxf8 {[%clk 0:00:07]} 39. Rxf7+ {[%clk 0:00:25]}  Kg8 {[%clk 0:00:06]} 40. Nh6+ {[%clk 0:00:25]}  Kh8 {[%clk 0:00:06]} 41. Rxf8+ {[%clk 0:00:25]}  Kg7 {[%clk 0:00:07]} 42. Rf7+ {[%clk 0:00:20]}  Kxh6 {[%clk 0:00:07]} 43. d7 {[%clk 0:00:20]}  Qd2 {[%clk 0:00:07]} 44. Rf6+ {[%clk 0:00:14]}  Kg7 {[%clk 0:00:06]} 45. Rc6 {[%clk 0:00:14]}  Nxd7 {[%clk 0:00:06]} 46. Rc7 {[%clk 0:00:15]}  Kg6 {[%clk 0:00:05]} 47. Qb1 {[%clk 0:00:14]}  Nf6 {[%clk 0:00:05]} 48. Rc6 {[%clk 0:00:14]}  Kf5 {[%clk 0:00:05]} 49. Qc1 {[%clk 0:00:15]}  Qd4 {[%clk 0:00:03]} 50. Rc5+ {[%clk 0:00:14]}  Kg6 {[%clk 0:00:03]} 51. Qg5+ {[%clk 0:00:13]}  Kf7 {[%clk 0:00:03]} 52. Rc7+ {[%clk 0:00:12]}  Ke6 {[%clk 0:00:03]} 53. Qxh4 {[%clk 0:00:09]}  Qd1+ {[%clk 0:00:03]} 54. Kh2 {[%clk 0:00:10]}  Qd6+ {[%clk 0:00:03]} 55. Qg3 {[%clk 0:00:10]}  Qd5 {[%clk 0:00:03]} 56. Ra7 {[%clk 0:00:08]}  Nh5 {[%clk 0:00:02]} 57. Qg4+ {[%clk 0:00:09]}  Kf6 {[%clk 0:00:02]} 58. Qh4+ {[%clk 0:00:07]}  Ke6 {[%clk 0:00:01]} 59. Qg4+ {[%clk 0:00:07]}  Kf6 {[%clk 0:00:01]} 60. Qd7 {[%clk 0:00:08]}  Qe5+ {[%clk 0:00:01]} 61. g3 {[%clk 0:00:08]}  e3 {[%clk 0:00:02]} 62. Qf7+ {[%clk 0:00:08]}  Kg5 {[%clk 0:00:02]} 63. h4+ {[%clk 0:00:09]}  Kg4 {[%clk 0:00:02]} 64. f3# {[%clk 0:00:09]} 1-0


[Site "https://www.chess.com"]

[Event "Titled Tuesday Blitz June 6 Early 2023"]
[White "agvania123"]
[Black "Manukian, Artak"]
[BlackFideId "13301373"]
[WhiteElo "2237"]
[BlackElo "2130"]
[Result "0-1"]
[Round "6"]
[TimeControl "180+2"]
[Date "2023.06.06"]
[WhiteClock "0:00:03"]
[BlackClock "0:00:32"]
[Board "160"]

1. d4 {[%clk 0:03:00]}  Nf6 {[%clk 0:02:58]} 2. Nf3 {[%clk 0:03:01]}  g6 {[%clk 0:02:58]} 3. e3 {[%clk 0:03:01]}  Bg7 {[%clk 0:02:58]} 4. Bd3 {[%clk 0:03:01]}  d5 {[%clk 0:02:58]} 5. O-O {[%clk 0:03:01]}  O-O {[%clk 0:02:57]} 6. b3 {[%clk 0:03:01]}  b6 {[%clk 0:02:56]} 7. Bb2 {[%clk 0:03:02]}  a5 {[%clk 0:02:55]} 8. a4 {[%clk 0:03:01]}  Ba6 {[%clk 0:02:55]} 9. c4 {[%clk 0:02:53]}  c6 {[%clk 0:02:53]} 10. Nbd2 {[%clk 0:02:52]}  e6 {[%clk 0:02:52]} 11. Qe2 {[%clk 0:02:52]}  Re8 {[%clk 0:02:48]} 12. Ne5 {[%clk 0:02:50]}  Nfd7 {[%clk 0:02:47]} 13. f4 {[%clk 0:02:50]}  f6 {[%clk 0:02:45]} 14. Nxd7 {[%clk 0:02:50]}  Nxd7 {[%clk 0:02:44]} 15. e4 {[%clk 0:02:50]}  f5 {[%clk 0:02:41]} 16. e5 {[%clk 0:02:40]}  Nf8 {[%clk 0:02:19]} 17. Rfc1 {[%clk 0:02:33]}  h6 {[%clk 0:02:17]} 18. Ba3 {[%clk 0:02:31]}  g5 {[%clk 0:02:17]} 19. cxd5 {[%clk 0:02:20]}  Bxd3 {[%clk 0:02:14]} 20. Qxd3 {[%clk 0:02:21]}  Qxd5 {[%clk 0:02:11]} 21. Nc4 {[%clk 0:02:15]}  Rab8 {[%clk 0:02:07]} 22. Nd6 {[%clk 0:02:05]}  Ng6 {[%clk 0:02:02]} 23. Qc4 {[%clk 0:01:52]}  Nxf4 {[%clk 0:01:49]} 24. Qxd5 {[%clk 0:01:52]}  cxd5 {[%clk 0:01:48]} 25. Nxe8 {[%clk 0:01:53]}  Ne2+ {[%clk 0:01:46]} 26. Kf2 {[%clk 0:01:53]}  Nxc1 {[%clk 0:01:46]} 27. Nxg7 {[%clk 0:01:53]}  Nxb3 {[%clk 0:01:41]} 28. Rb1 {[%clk 0:01:49]}  Nd2 {[%clk 0:01:37]} 29. Rc1 {[%clk 0:01:29]}  Kxg7 {[%clk 0:01:33]} 30. Rc7+ {[%clk 0:01:20]}  Kg6 {[%clk 0:01:29]} 31. Ke2 {[%clk 0:01:15]}  Nc4 {[%clk 0:01:25]} 32. Be7 {[%clk 0:01:15]}  f4 {[%clk 0:01:16]} 33. g3 {[%clk 0:00:48]}  b5 {[%clk 0:01:10]} 34. axb5 {[%clk 0:00:46]}  Rxb5 {[%clk 0:01:10]} 35. g4 {[%clk 0:00:45]}  Rb2+ {[%clk 0:01:01]} 36. Kd3 {[%clk 0:00:45]}  h5 {[%clk 0:00:58]} 37. Bf6 {[%clk 0:00:29]}  hxg4 {[%clk 0:00:57]} 38. Rg7+ {[%clk 0:00:28]}  Kh6 {[%clk 0:00:56]} 39. Rxg5 {[%clk 0:00:27]}  g3 {[%clk 0:00:53]} 40. hxg3 {[%clk 0:00:26]}  fxg3 {[%clk 0:00:54]} 41. Rg8 {[%clk 0:00:15]}  g2 {[%clk 0:00:52]} 42. Rh8+ {[%clk 0:00:16]}  Kg6 {[%clk 0:00:52]} 43. Rg8+ {[%clk 0:00:16]}  Kf5 {[%clk 0:00:49]} 44. Bh4 {[%clk 0:00:08]}  a4 {[%clk 0:00:40]} 45. Rg5+ {[%clk 0:00:04]}  Kf4 {[%clk 0:00:40]} 46. Rg6 {[%clk 0:00:04]}  a3 {[%clk 0:00:37]} 47. Bg3+ {[%clk 0:00:04]}  Kf5 {[%clk 0:00:36]} 48. Rg8 {[%clk 0:00:03]}  g1=Q {[%clk 0:00:32]} 0-1


[Site "https://www.chess.com"]

[Event "Titled Tuesday Blitz June 6 Early 2023"]
[White "Vivas Zamora, Fabian Ernesto"]
[Black "Clawitter, Craig"]
[WhiteFideId "3902480"]
[BlackFideId "2023105"]
[WhiteElo "2244"]
[BlackElo "2226"]
[Result "0-1"]
[Round "6"]
[TimeControl "180+2"]
[Date "2023.06.06"]
[WhiteClock "0:00:01"]
[BlackClock "0:00:14"]
[Board "161"]

1. e4 {[%clk 0:02:52]}  e6 {[%clk 0:03:00]} 2. d4 {[%clk 0:02:52]}  d5 {[%clk 0:03:00]} 3. Nd2 {[%clk 0:02:53]}  Be7 {[%clk 0:03:00]} 4. Ngf3 {[%clk 0:02:51]}  Nf6 {[%clk 0:03:00]} 5. e5 {[%clk 0:02:51]}  Nfd7 {[%clk 0:03:01]} 6. Bd3 {[%clk 0:02:50]}  c5 {[%clk 0:03:01]} 7. c3 {[%clk 0:02:51]}  Nc6 {[%clk 0:03:02]} 8. O-O {[%clk 0:02:51]}  a5 {[%clk 0:03:02]} 9. a4 {[%clk 0:02:41]}  cxd4 {[%clk 0:03:01]} 10. cxd4 {[%clk 0:02:40]}  Nb4 {[%clk 0:03:01]} 11. Bb1 {[%clk 0:02:38]}  b6 {[%clk 0:03:01]} 12. Re1 {[%clk 0:02:28]}  Ba6 {[%clk 0:03:01]} 13. Nf1 {[%clk 0:02:26]}  b5 {[%clk 0:02:52]} 14. Ne3 {[%clk 0:02:10]}  Nb6 {[%clk 0:02:43]} 15. axb5 {[%clk 0:02:08]}  Bxb5 {[%clk 0:02:44]} 16. Nd2 {[%clk 0:01:47]}  Bd3 {[%clk 0:02:23]} 17. Ra3 {[%clk 0:01:07]}  Bxb1 {[%clk 0:01:48]} 18. Nxb1 {[%clk 0:01:08]}  O-O {[%clk 0:01:48]} 19. Nc3 {[%clk 0:01:04]}  Nc4 {[%clk 0:01:37]} 20. Ra1 {[%clk 0:00:36]}  Qb6 {[%clk 0:01:21]} 21. Nxc4 {[%clk 0:00:28]}  dxc4 {[%clk 0:01:22]} 22. d5 {[%clk 0:00:29]}  Nd3 {[%clk 0:01:01]} 23. Be3 {[%clk 0:00:14]}  Qxb2 {[%clk 0:00:58]} 24. Na4 {[%clk 0:00:14]}  Qxe5 {[%clk 0:00:50]} 25. Re2 {[%clk 0:00:04]}  Bd6 {[%clk 0:00:20]} 26. g3 {[%clk 0:00:03]}  exd5 {[%clk 0:00:20]} 27. Bf4 {[%clk 0:00:02]}  Qf6 {[%clk 0:00:19]} 28. Bxd6 {[%clk 0:00:03]}  Qxd6 {[%clk 0:00:19]} 29. Raa2 {[%clk 0:00:02]}  Rfe8 {[%clk 0:00:19]} 30. Kg2 {[%clk 0:00:02]}  Nb4 {[%clk 0:00:18]} 31. Rxe8+ {[%clk 0:00:01]}  Rxe8 {[%clk 0:00:18]} 32. Re2 {[%clk 0:00:02]}  Qc6 {[%clk 0:00:17]} 33. Rxe8+ {[%clk 0:00:01]}  Qxe8 {[%clk 0:00:17]} 34. Nb6 {[%clk 0:00:02]}  g6 {[%clk 0:00:14]} 35. Nxd5 {[%clk 0:00:01]}  Qe4+ {[%clk 0:00:14]} 0-1


[Site "https://www.chess.com"]